bitfinex/quotes_SOLUSD_20260228
["timestamp","ask_amount","ask_price","bid_price","bid_amount"]
[1772237282026,0.46162745,82.115,82.092,0.47137503]
[1772237283924,0.46162745,82.115,82.087,0.47137503]
[1772237284626,0.46162745,82.113,82.087,0.47137503]
[1772237287227,0.46162745,82.111,82.087,0.47137503]
[1772237287933,0.46162745,82.111,82.08,3.10910393]
[1772237287934,0.46162745,82.109,82.081,0.47137503]
[1772237291228,0.45030914,82.107,82.081,0.47137503]
[1772237291625,0.45030914,82.112,82.091,0.48947707]
[1772237292331,0.45030914,82.112,82.081,0.48947707]
[1772237293427,0.45030914,82.11,82.081,0.48947707]
[1772237294734,0.45030914,82.108,82.081,0.48947707]
[1772237297043,12.17922954,82.107,82.082,0.48947707]
[1772237297544,0.45030914,82.106,82.082,0.48947707]
[1772237300333,0.45030914,82.104,82.082,0.48947707]
[1772237305444,0.45030914,82.102,82.082,0.48947707]
[1772237306341,0.45030914,82.102,82.08,3.10910393]
[1772237306342,0.45030914,82.102,82.084,0.48947707]
[1772237306534,0.45030914,82.107,82.084,0.48947707]
[1772237307934,0.45030914,82.107,82.086,0.48947707]
[1772237308737,0.45030914,82.105,82.086,0.48947707]
[1772237313239,0.45030914,82.103,82.082,0.48947707]
[1772237315451,0.45030914,82.101,82.082,0.48947707]
[1772237316354,12.17997125,82.102,82.046,12.18828462]
[1772237316355,0.45030914,82.089,82.046,12.18828462]
[1772237316746,0.45030914,82.089,82.046,42.65899617]
[1772237316952,0.45030914,82.089,82.051,0.48947707]
[1772237317453,42.62989938,82.102,82.039,3.69383402]
[1772237317454,0.45030914,82.087,82.053,0.48947707]
[1772237317642,0.45030914,82.087,82.061,0.48947707]
[1772237318762,0.45030914,82.087,82.063,0.48947707]
[1772237325445,0.45030914,82.087,82.065,0.48109965]
[1772237327642,30.44992813,82.102,82.066,12.18531425]
[1772237327842,121.75342144,82.145,82.066,12.18531425]
[1772237327843,0.4776828,82.109,82.071,0.48109965]
[1772237329857,0.4776828,82.109,82.07,3.11099931]
[1772237329858,0.4776828,82.107,82.073,0.48109965]
[1772237331567,0.4776828,82.107,82.081,0.48109965]
[1772237332465,0.4776828,82.107,82.083,0.48109965]
[1772237333473,0.4776828,82.111,82.09,3.59209896]
[1772237333768,0.4776828,82.111,82.09,0.48109965]
[1772237334673,0.4776828,82.109,82.09,0.48109965]
[1772237336155,0.4776828,82.107,82.09,0.48109965]
[1772237336676,0.4776828,82.116,82.092,0.48109965]
[1772237339676,0.4776828,82.109,82.075,0.48109965]
[1772237340675,0.4776828,82.109,82.077,0.48109965]
[1772237341459,0.4776828,82.109,82.081,0.48109965]
[1772237342261,12.17908121,82.108,82.082,12.18293901]
[1772237342764,0.4776828,82.107,82.083,0.48109965]
[1772237345782,0.4776828,82.105,82.083,0.48109965]
[1772237345988,0.4776828,82.105,82.07,3.11099931]
[1772237346385,0.4776828,82.105,82.08,3.11099931]
[1772237346575,0.4776828,82.105,82.081,0.48109965]
[1772237347575,0.4776828,82.105,82.083,0.48109965]
[1772237349780,0.4776828,82.105,82.084,12.18264217]
[1772237349968,0.4776828,82.105,82.085,0.48109965]
[1772237350776,0.47994655,82.103,82.085,0.48109965]
[1772237355271,0.47994655,82.101,82.085,0.48109965]
[1772237355474,0.47994655,82.099,82.071,0.48719972]
[1772237355680,0.47994655,82.089,82.062,0.48719972]
[1772237355868,42.62989938,82.102,82.011,48.7737217]
[1772237355869,0.47994655,82.079,82.057,0.48719972]
[1772237357686,0.47994655,82.079,82.058,12.67370195]
[1772237357889,0.47994655,82.079,82.059,0.48719972]
[1772237358588,0.47994655,82.088,82.061,0.48719972]
[1772237359694,0.47994655,82.088,82.06,3.11099931]
[1772237359695,0.47994655,82.088,82.063,0.48719972]
[1772237360071,0.47994655,82.086,82.063,0.48719972]
[1772237360264,0.47994655,82.086,82.058,0.48719972]
[1772237361993,0.47994655,82.084,82.058,0.48719972]
[1772237363392,12.18279059,82.083,82.053,0.48719972]
[1772237363573,12.18279059,82.083,82.048,0.48719972]
[1772237363574,0.47994655,82.079,82.048,0.48719972]
[1772237365396,0.47994655,82.079,82.051,0.48719972]
[1772237365582,0.47994655,82.077,82.052,0.48719972]
[1772237368493,0.47994655,82.077,82.054,0.48719972]
[1772237370397,0.47994655,82.075,82.054,0.48719972]
[1772237371587,0.47994655,82.073,82.054,0.48719972]
[1772237375495,0.47994655,82.081,82.055,0.48719972]
[1772237376695,0.47994655,82.079,82.055,0.48719972]
[1772237378278,0.47994655,82.084,82.055,0.48719972]
[1772237378475,42.63665046,82.089,82.057,0.48719972]
[1772237378693,42.63665046,82.089,82.056,12.18679925]
[1772237378694,0.47994655,82.088,82.061,0.48719972]
[1772237380387,12.18219693,82.087,82.061,0.48719972]
[1772237380587,0.47231704,82.086,82.061,0.48719972]
[1772237381491,0.47452873,82.084,82.061,0.48719972]
[1772237384495,0.47452873,82.082,82.061,0.48719972]
[1772237384803,0.47452873,82.082,82.063,0.46380748]
[1772237387205,12.18308743,82.081,82.063,0.46380748]
[1772237387392,0.47452873,82.08,82.063,0.46380748]
[1772237390912,0.47452873,82.078,82.063,0.46380748]
[1772237391813,30.45475033,82.089,82.057,12.18652514]
[1772237391814,0.47452873,82.105,82.071,0.43188159]
[1772237392313,0.47452873,82.105,82.081,0.43188159]
[1772237392699,12.17967455,82.104,82.081,0.43188159]
[1772237393322,0.47452873,82.103,82.081,0.43188159]
[1772237393717,0.47452873,82.103,82.071,0.43188159]
[1772237394620,0.47452873,82.103,82.072,0.43188159]
[1772237394917,0.47452873,82.101,82.072,0.43188159]
[1772237395919,0.47452873,82.101,82.073,12.18427497]
[1772237396118,0.47452873,82.101,82.074,0.43188159]
[1772237398523,0.47452873,82.101,82.076,0.43188159]
[1772237402119,0.47452873,82.101,82.078,0.43188159]
[1772237402520,0.47452873,82.099,82.078,0.43188159]
[1772237404426,0.47452873,82.089,82.053,0.43188159]
[1772237405725,0.47452873,82.087,82.055,0.43188159]
[1772237407028,0.47452873,82.085,82.057,0.43188159]
[1772237410036,0.47452873,82.083,82.057,0.43188159]
[1772237410332,0.47452873,82.083,82.059,0.43188159]
[1772237413631,0.47452873,82.083,82.061,0.43188159]
[1772237414531,0.47170823,82.109,82.071,0.43188159]
[1772237416619,0.47170823,82.107,82.071,0.43188159]
[1772237417035,0.47170823,82.107,82.072,12.18442343]
[1772237417235,0.47170823,82.112,82.091,0.43188159]
[1772237418766,0.47170823,82.11,82.091,0.43188159]
[1772237420264,3.11359373,82.11,82.083,0.43188159]
[1772237420567,0.47170823,82.099,82.07,0.43188159]
[1772237422452,0.47170823,82.097,82.07,0.43188159]
[1772237424770,0.47170823,82.095,82.07,0.43188159]
[1772237424968,0.47170823,82.095,82.072,0.43188159]
[1772237426781,0.47170823,82.095,82.074,0.43188159]
[1772237431979,0.47170823,82.095,82.076,0.43188159]
[1772237433983,0.47170823,82.101,82.081,0.43188159]
[1772237435568,0.47170823,82.101,82.082,12.18293901]
[1772237436779,0.47170823,82.099,82.081,0.43188159]
[1772237437485,0.47170823,82.099,82.069,12.18473729]
[1772237437788,0.47170823,82.097,82.069,12.18473729]
[1772237438491,0.47170823,82.089,82.062,0.43188159]
[1772237438681,0.47170823,82.089,82.042,0.43188159]
[1772237438865,0.47170823,82.079,82.05,3.1120514]
[1772237439404,0.47170823,82.079,82.05,3.54393299]
[1772237440381,0.47023527,82.077,82.052,0.43188159]
[1772237442895,0.47023527,82.077,82.054,0.43188159]
[1772237443488,0.45498161,82.087,82.061,0.43188159]
[1772237443795,0.45498161,82.087,82.06,3.1120514]
[1772237443796,0.45498161,82.101,82.071,0.43188159]
[1772237445098,42.62639033,82.109,82.07,3.1120514]
[1772237445099,0.45498161,82.099,82.073,0.43188159]
[1772237446287,0.45498161,82.097,82.073,0.43188159]
[1772237447178,0.45498161,82.097,82.075,0.43188159]
[1772237449591,12.18086143,82.096,82.075,0.43188159]
[1772237449894,0.45498161,82.095,82.075,0.43188159]
[1772237451903,12.17908121,82.108,82.075,0.43188159]
[1772237452092,0.45498161,82.107,82.081,0.43188159]
[1772237455097,0.45498161,82.107,82.082,12.18293901]
[1772237455306,0.45498161,82.107,82.083,0.43188159]
[1772237457313,0.45498161,82.107,82.085,0.43188159]
[1772237460411,0.45498161,82.099,82.071,12.18457189]
[1772237460798,0.45498161,82.099,82.071,12.61645348]
[1772237461413,0.45498161,82.099,82.066,12.18521263]
[1772237462009,0.45498161,82.089,82.066,12.18521263]
[1772237463503,0.45498161,82.089,82.066,12.61709422]
[1772237463818,0.45498161,82.089,82.067,0.43188159]
[1772237464719,0.45498161,82.089,82.069,0.43188159]
[1772237468320,0.45498161,82.089,82.071,0.43188159]
[1772237473325,0.45498161,82.089,82.065,0.43188159]
[1772237474935,0.45498161,82.089,82.067,0.43188159]
[1772237477331,0.45498161,82.089,82.069,0.43188159]
[1772237478423,3.1120514,82.1,82.071,0.43188159]
[1772237478424,12.65957,82.1,82.071,0.43188159]
[1772237478820,0.47922825,82.118,82.081,0.43188159]
[1772237480719,0.47922825,82.116,82.083,0.43188159]
[1772237483325,3.1120514,82.12,82.085,0.43188159]
[1772237483326,0.47922825,82.114,82.085,0.43188159]
[1772237485043,12.1783396,82.113,82.085,0.43188159]
[1772237485247,0.47922825,82.112,82.085,0.43188159]
[1772237486131,0.47922825,82.11,82.085,0.43188159]
[1772237490644,0.47922825,82.108,82.085,0.43188159]
[1772237491325,0.47922825,82.108,82.087,0.43188159]
[1772237493847,0.47922825,82.123,82.101,0.43188159]
[1772237494841,66.70979,82.188,82.101,0.43188159]
[1772237494842,0.47922825,82.139,82.101,0.43188159]
[1772237495150,0.47922825,82.129,82.101,0.43188159]
[1772237495335,0.47922825,82.129,82.091,0.43188159]
[1772237495530,0.47922825,82.119,82.091,0.43188159]
[1772237495727,0.47922825,82.117,82.093,0.43188159]
[1772237498856,30.43897629,82.132,82.095,0.43188159]
[1772237498857,12.65519532,82.129,82.095,0.43188159]
[1772237499154,0.47922825,82.128,82.101,0.43188159]
[1772237500850,0.47922825,82.128,82.1,3.11124937]
[1772237500851,0.45865406,82.126,82.09,12.18175173]
[1772237501032,0.45865406,82.126,82.09,15.72488269]
[1772237501230,0.45865406,82.126,82.091,0.43188159]
[1772237507141,0.45865406,82.124,82.093,0.43188159]
[1772237507658,0.45865406,82.124,82.092,12.18145495]
[1772237508057,0.45865406,82.124,82.093,0.43188159]
[1772237509647,0.45865406,82.122,82.095,0.43188159]
[1772237510047,60.27682696,82.168,82.094,12.18115818]
[1772237510048,0.45865406,82.159,82.111,0.43188159]
[1772237510363,0.45865406,82.168,82.131,0.43188159]
[1772237510656,0.45865406,82.159,82.131,0.43188159]
[1772237511070,0.45865406,82.149,82.106,3.69383402]
[1772237511237,42.79463411,82.17,82.106,3.69383402]
[1772237511238,0.45865406,82.129,82.106,3.69383402]
[1772237511536,0.45865406,82.129,82.095,0.43188159]
[1772237511537,0.45865406,82.129,82.103,3.69383402]
[1772237511736,0.45865406,82.129,82.1,0.43188159]
[1772237512840,0.45865406,82.129,82.07,48.73868857]
[1772237512841,0.45865406,82.119,82.083,0.43188159]
[1772237513260,0.45865406,82.119,82.084,0.43188159]
[1772237513757,0.45865406,82.119,82.086,0.43188159]
[1772237514556,0.45865406,82.119,82.091,0.43188159]
[1772237515858,0.45865406,82.119,82.093,0.43188159]
[1772237516059,15.28707856,82.13,82.101,0.43188159]
[1772237516060,0.45865406,82.13,82.101,0.43188159]
[1772237519672,0.45865406,82.13,82.103,0.43188159]
[1772237520162,0.45865406,82.129,82.103,0.43188159]
[1772237520552,0.45865406,82.119,82.087,12.18205527]
[1772237520754,0.45865406,82.119,82.087,12.61393686]
[1772237521063,0.45865406,82.119,82.088,0.43188159]
[1772237521755,0.45865406,82.119,82.089,12.18190013]
[1772237521963,0.45865406,82.119,82.09,0.43188159]
[1772237522758,0.45865406,82.117,82.09,0.43188159]
[1772237523342,0.45865406,82.109,82.079,12.18332212]
[1772237523859,0.45865406,82.109,82.051,0.43188159]
[1772237523860,0.45865406,82.089,82.051,0.43188159]
[1772237524040,3.11124937,82.11,82.07,3.11124937]
[1772237524362,3.11124937,82.11,82.071,0.45415006]
[1772237524665,3.11124937,82.1,82.071,0.45415006]
[1772237525161,3.11124937,82.11,82.071,0.45415006]
[1772237525662,3.11124937,82.1,82.071,0.45415006]
[1772237525848,103.77248287,82.135,82.073,0.45415006]
[1772237525849,3.11124937,82.11,82.073,0.45415006]
[1772237526047,0.45865406,82.109,82.073,0.45415006]
[1772237526361,103.77248287,82.135,82.072,12.18442343]
[1772237526362,0.45865406,82.119,82.081,0.45415006]
[1772237526542,48.67715494,82.175,82.072,42.64548201]
[1772237526543,0.45865406,82.131,82.101,0.45415006]
[1772237528468,0.45865406,82.131,82.103,0.45415006]
[1772237532563,0.45186408,82.138,82.111,0.45823594]
[1772237533266,0.45186408,82.136,82.111,0.45823594]
[1772237533466,0.45186408,82.129,82.099,0.45823594]
[1772237534170,0.45186408,82.119,82.099,0.45823594]
[1772237536549,0.45186408,82.119,82.101,0.45823594]
[1772237536966,0.45186408,82.125,82.101,0.45823594]
[1772237537656,0.45186408,82.125,82.103,0.45823594]
[1772237539075,0.45186408,82.125,82.105,0.45823594]
[1772237539872,3.11124937,82.13,82.105,0.45823594]
[1772237539873,0.45186408,82.129,82.105,0.45823594]
[1772237540972,0.45186408,82.129,82.107,0.45823594]
[1772237544577,0.45186408,82.127,82.107,0.45823594]
[1772237545777,0.45186408,82.135,82.109,0.45823594]
[1772237546470,0.45186408,82.135,82.111,0.45823594]
[1772237546673,0.45186408,82.135,82.113,0.45823594]
[1772237549379,0.45186408,82.135,82.079,3.69383402]
[1772237549380,0.45186408,82.133,82.081,0.45823594]
[1772237549569,42.61329047,82.134,82.091,0.45823594]
[1772237549570,0.45186408,82.129,82.091,0.45823594]
[1772237550484,3.11124937,82.12,82.085,0.45823594]
[1772237550688,0.45186408,82.109,82.075,0.45823594]
[1772237551370,3.11124937,82.11,82.076,12.64206556]
[1772237551371,0.45186408,82.107,82.076,12.64206556]
[1772237551889,0.45186408,82.107,82.077,0.45823594]
[1772237553180,0.45186408,82.107,82.076,12.18382962]
[1772237553181,0.45186408,82.107,82.081,0.45823594]
[1772237555086,30.4467197,82.111,82.081,0.45823594]
[1772237555087,0.45186408,82.105,82.081,0.45823594]
[1772237557593,0.45186408,82.103,82.081,0.45823594]
[1772237557792,0.45186408,82.103,82.08,3.1114457]
[1772237557995,0.45186408,82.099,82.064,0.45823594]
[1772237558671,0.45186408,82.099,82.07,3.1114457]
[1772237559079,0.45186408,82.099,82.07,3.56968164]
[1772237560483,0.48243845,82.097,82.071,12.65604493]
[1772237560884,0.48243845,82.097,82.072,0.452788]
[1772237561386,48.68217371,82.166,82.091,0.452788]
[1772237561575,3.1114457,82.14,82.101,0.452788]
[1772237561976,0.28432314,82.139,82.101,0.452788]
[1772237562499,42.61121526,82.138,82.101,0.452788]
[1772237563498,0.4925496,82.137,82.101,0.452788]
[1772237564188,0.4925496,82.129,82.091,0.452788]
[1772237565280,0.4925496,82.127,82.091,0.452788]
[1772237567202,0.4925496,82.125,82.093,0.452788]
[1772237571511,0.4925496,82.119,82.084,0.452788]
[1772237573605,3.1114457,82.12,82.086,0.452788]
[1772237573606,0.4925496,82.117,82.086,0.452788]
[1772237575714,0.4925496,82.115,82.086,0.452788]
[1772237577512,0.4925496,82.127,82.091,0.452788]
[1772237577812,0.4925496,82.127,82.101,0.452788]
[1772237579020,3.69383402,82.152,82.087,42.63768927]
[1772237579021,30.43590186,82.14,82.111,0.452788]
[1772237579202,3.1114457,82.15,82.121,0.452788]
[1772237579997,3.1114457,82.15,82.12,3.1114457]
[1772237579998,3.1114457,82.14,82.107,0.452788]
[1772237580197,3.1114457,82.13,82.107,0.452788]
[1772237580604,3.1114457,82.14,82.107,0.452788]
[1772237581005,0.1344763,82.139,82.107,0.452788]
[1772237581205,0.1344763,82.138,82.107,0.452788]
[1772237581401,0.1344763,82.129,82.094,0.452788]
[1772237581623,0.1344763,82.119,82.094,0.452788]
[1772237582014,42.61069649,82.139,82.111,0.452788]
[1772237582015,12.17448471,82.139,82.111,0.452788]
[1772237582412,12.17211368,82.155,82.121,0.452788]
[1772237582715,0.1344763,82.154,82.121,0.452788]
[1772237583026,0.1344763,82.149,82.121,0.452788]
[1772237583623,0.1344763,82.148,82.121,0.452788]
[1772237586010,12.17300271,82.149,82.122,0.452788]
[1772237586202,12.30747901,82.149,82.122,0.452788]
[1772237587020,12.17250629,82.153,82.123,0.452788]
[1772237587910,30.42382516,82.173,82.131,0.452788]
[1772237588109,0.1344763,82.175,82.141,0.452788]
[1772237588110,12.17003979,82.169,82.141,0.452788]
[1772237588514,42.59513928,82.169,82.141,0.452788]
[1772237588710,0.1344763,82.168,82.141,0.452788]
[1772237589309,3.245922,82.16,82.131,0.452788]
[1772237589511,0.1344763,82.149,82.125,0.452788]
[1772237590605,12.30747901,82.149,82.125,0.452788]
[1772237592531,12.17300271,82.149,82.125,0.452788]
[1772237593525,0.1344763,82.148,82.125,0.452788]
[1772237595429,12.17300271,82.149,82.125,0.452788]
[1772237595633,12.17247085,82.153,82.131,0.45062079]
[1772237595810,3.1114457,82.16,82.131,0.45062079]
[1772237595811,12.30599737,82.159,82.131,0.45062079]
[1772237596016,0.1344763,82.149,82.125,0.45062079]
[1772237596530,3.1114457,82.15,82.125,0.45062079]
[1772237596726,0.1344763,82.154,82.125,0.45062079]
[1772237600923,0.1344763,82.149,82.113,0.45062079]
[1772237601325,3.1114457,82.15,82.121,0.45062079]
[1772237601528,42.73480005,82.159,82.121,0.45062079]
[1772237601728,72.89879687,82.306,82.133,0.45062079]
[1772237601729,0.1344763,82.166,82.133,0.45062079]
[1772237602718,42.59537243,82.169,82.133,0.45062079]
[1772237603541,42.59537243,82.169,82.141,0.45062079]
[1772237604338,0.2,82.17,82.151,0.45062079]
[1772237604533,0.1344763,82.169,82.151,0.45062079]
[1772237604838,12.36994108,82.17,82.151,0.45062079]
[1772237605622,0.1344763,82.169,82.151,0.45062079]
[1772237605821,0.1344763,82.169,82.141,0.45062079]
[1772237608241,0.1344763,82.169,82.143,0.45062079]
[1772237608545,12.36994108,82.17,82.143,0.45062079]
[1772237608923,0.1344763,82.169,82.143,0.45062079]
[1772237613850,12.36994108,82.17,82.143,0.45062079]
[1772237614056,0.2,82.17,82.145,0.45062079]
[1772237615056,12.17003979,82.169,82.145,0.45062079]
[1772237615569,12.17003979,82.169,82.14,3.10663133]
[1772237615570,0.2,82.17,82.147,0.45062079]
[1772237616356,12.3699696,82.17,82.147,0.45062079]
[1772237617327,0.2,82.17,82.147,0.45062079]
[1772237617533,0.2,82.17,82.151,0.45062079]
[1772237619265,0.1,82.18,82.148,12.17315089]
[1772237619266,0.1,82.18,82.161,0.45062079]
[1772237624347,0.1,82.18,82.162,0.46676364]
[1772237631266,0.1,82.18,82.171,0.46676364]
[1772237632172,0.1,82.18,82.161,0.46676364]
[1772237634771,0.1,82.19,82.171,0.46676364]
[1772237637778,0.4344763,82.189,82.171,0.46676364]
[1772237638071,0.4344763,82.189,82.161,0.46676364]
[1772237639680,0.4344763,82.187,82.161,0.46676364]
[1772237640582,12.16722635,82.188,82.14,3.10663133]
[1772237640583,0.46965815,82.179,82.14,3.10663133]
[1772237642563,3.10663133,82.18,82.128,30.43998559]
[1772237642564,0.46965815,82.177,82.15,3.57339497]
[1772237642886,0.46965815,82.177,82.151,0.46676364]
[1772237643273,0.46965815,82.177,82.145,0.46676364]
[1772237644486,0.46965815,82.177,82.15,3.57339497]
[1772237645183,12.16900311,82.176,82.151,0.46676364]
[1772237645385,0.46965815,82.175,82.151,0.46676364]
[1772237647089,0.46965815,82.175,82.15,3.10663133]
[1772237647260,30.42176738,82.178,82.151,0.46676364]
[1772237647261,0.46965815,82.173,82.151,0.46676364]
[1772237649785,0.46965815,82.171,82.151,0.46676364]
[1772237650771,0.46965815,82.171,82.119,3.69383402]
[1772237650772,0.4756942,82.188,82.164,0.09876006]
[1772237651085,0.4756942,82.188,82.17,3.10663133]
[1772237651289,0.4756942,82.188,82.15,3.10663133]
[1772237652102,0.4756942,82.186,82.151,0.09876006]
[1772237652777,0.4756942,82.186,82.161,0.09876006]
[1772237654596,0.4756942,82.184,82.13,42.61536587]
[1772237654772,0.4756942,82.184,82.15,3.10663133]
[1772237655605,0.4756942,82.184,82.141,0.09876006]
[1772237656595,0.4756942,82.184,82.15,3.10663133]
[1772237657094,0.4756942,82.182,82.15,3.10663133]
[1772237657705,0.4756942,82.182,82.15,3.20539139]
[1772237657996,0.4756942,82.182,82.151,0.09876006]
[1772237659192,12.16826273,82.181,82.151,0.09876006]
[1772237659398,0.4756942,82.18,82.151,0.09876006]
[1772237660496,0.4756942,82.179,82.146,0.09876006]
[1772237660691,0.4756942,82.179,82.15,3.20539139]
[1772237660898,0.1,82.19,82.161,0.09876006]
[1772237660899,12.16707831,82.189,82.161,0.09876006]
[1772237661077,0.4756942,82.188,82.161,0.09876006]
[1772237661483,0.4756942,82.186,82.161,0.09876006]
[1772237662594,0.4756942,82.184,82.161,0.09876006]
[1772237662902,0.4756942,82.184,82.151,0.09876006]
[1772237663079,0.4756942,82.184,82.146,12.17336983]
[1772237663283,0.4756942,82.179,82.141,0.09876006]
[1772237664498,0.4756942,82.177,82.151,0.09876006]
[1772237665496,12.16815077,82.182,82.161,0.09876006]
[1772237665696,0.4756942,82.181,82.161,0.09876006]
[1772237666902,0.1,82.19,82.171,0.45859201]
[1772237667104,0.1,82.19,82.181,0.45859201]
[1772237673905,0.5756942,82.19,82.174,0.45859201]
[1772237674110,0.5756942,82.19,82.161,0.45859201]
[1772237674111,0.4756942,82.189,82.161,0.45859201]
[1772237676005,0.4756942,82.187,82.161,0.45859201]
[1772237676387,0.4756942,82.179,82.145,0.45859201]
[1772237677199,0.4756942,82.179,82.151,0.45859201]
[1772237679215,0.4756942,82.177,82.151,0.45859201]
[1772237680522,0.4756942,82.177,82.153,0.48235694]
[1772237681520,0.49998082,82.184,82.161,0.4520483]
[1772237681910,0.49998082,82.188,82.161,0.4520483]
[1772237683608,12.1673744,82.187,82.162,12.17107665]
[1772237683817,12.1673744,82.187,82.163,0.4520483]
[1772237684006,0.1,82.19,82.181,0.4520483]
[1772237686294,0.1,82.2,82.181,0.4520483]
[1772237688019,0.59998082,82.2,82.176,0.4520483]
[1772237689716,0.49998082,82.198,82.176,0.4520483]
[1772237691002,0.49998082,82.198,82.177,0.4520483]
[1772237692527,0.49998082,82.198,82.179,0.4520483]
[1772237692726,0.49998082,82.198,82.18,3.10630348]
[1772237692905,0.49998082,82.198,82.18,3.55835178]
[1772237693109,0.49998082,82.198,82.181,0.4520483]
[1772237694333,12.66557894,82.199,82.181,0.4520483]
[1772237694832,0.49998082,82.198,82.18,3.10630348]
[1772237695912,12.66587495,82.197,82.18,3.10630348]
[1772237696126,0.49998082,82.196,82.18,3.10630348]
[1772237696434,0.49998082,82.196,82.171,0.4520483]
[1772237697044,0.49998082,82.196,82.172,0.4520483]
[1772237697411,0.1,82.2,82.171,12.16974358]
[1772237697412,0.1,82.2,82.181,0.4520483]
[1772237697611,0.1,82.2,82.188,0.4520483]
[1772237698129,0.1,82.2,82.183,0.4520483]
[1772237699635,0.1,82.2,82.185,0.4520483]
[1772237701629,0.1,82.2,82.19,3.10630348]
[1772237703332,0.1,82.21,82.201,0.4520483]
[1772237703521,0.49998082,82.208,82.19,3.10630348]
[1772237703730,0.49998082,82.208,82.18,3.10630348]
[1772237705534,0.49998082,82.206,82.181,12.19066869]
[1772237705920,0.49998082,82.206,82.18,3.10630348]
[1772237706929,3.20630348,82.21,82.181,12.16826273]
[1772237706930,0.49998082,82.204,82.181,12.16826273]
[1772237707336,0.49998082,82.204,82.18,3.10630348]
[1772237708323,12.16471017,82.205,82.181,0.02240596]
[1772237708524,12.16469987,82.206,82.181,0.02240596]
[1772237708724,0.49998082,82.205,82.181,0.02240596]
[1772237709534,0.49998082,82.199,82.16,3.10630348]
[1772237710023,0.49998082,82.199,82.161,0.02240596]
[1772237711548,0.48879702,82.197,82.161,12.19363075]
[1772237711848,0.48879702,82.197,82.162,0.02240596]
[1772237712539,0.48879702,82.195,82.162,0.02240596]
[1772237713230,0.48879702,82.195,82.17,3.10630348]
[1772237713851,0.1,82.21,82.16,3.10630348]
[1772237713852,0.48879702,82.193,82.16,3.10630348]
[1772237715931,42.5821836,82.194,82.16,3.10630348]
[1772237715932,0.48879702,82.191,82.16,3.10630348]
[1772237716558,3.10630348,82.18,82.14,3.12870944]
[1772237716862,0.48879702,82.179,82.15,3.10630348]
[1772237717946,0.48879702,82.177,82.15,3.10630348]
[1772237718453,0.48879702,82.2,82.171,0.02240596]
[1772237718665,0.48879702,82.2,82.18,3.10630348]
[1772237719570,0.48879702,82.2,82.17,3.10630348]
[1772237720040,12.16559812,82.199,82.17,3.10630348]
[1772237720248,0.48879702,82.198,82.18,3.10630348]
[1772237720450,0.48879702,82.198,82.18,3.12870944]
[1772237720654,0.48879702,82.198,82.18,3.10630348]
[1772237720956,0.48879702,82.198,82.17,3.10630348]
[1772237722766,0.48879702,82.196,82.166,12.17034241]
[1772237723655,0.48879702,82.196,82.17,3.10630348]
[1772237724566,0.48879702,82.196,82.166,12.17034241]
[1772237724877,0.48879702,82.196,82.164,0.02240596]
[1772237725066,0.48879702,82.194,82.164,0.02240596]
[1772237725758,0.48879702,82.194,82.17,3.10630348]
[1772237728555,0.48879702,82.192,82.17,3.10630348]
[1772237729567,12.16648619,82.193,82.17,3.10630348]
[1772237729568,0.48879702,82.19,82.17,3.10630348]
[1772237730349,0.48879702,82.19,82.163,0.02240596]
[1772237730968,0.48879702,82.189,82.155,0.02240596]
[1772237731275,0.48879702,82.189,82.15,3.12870944]
[1772237731568,0.48879702,82.187,82.15,0.02240596]
[1772237731748,0.48879702,82.179,82.14,3.10630348]
[1772237731957,0.48879702,82.179,82.14,3.12870944]
[1772237732162,0.48879702,82.179,82.141,0.02240596]
[1772237732762,0.48879702,82.179,82.14,3.10630348]
[1772237732763,0.48879702,82.179,82.15,3.10630348]
[1772237732964,0.48879702,82.179,82.146,0.02240596]
[1772237734776,0.48879702,82.177,82.146,0.02240596]
[1772237735870,0.48879702,82.175,82.146,0.02240596]
[1772237736657,0.48879702,82.169,82.146,0.02240596]
[1772237736862,0.48879702,82.169,82.141,0.02240596]
[1772237737757,0.48879702,82.167,82.141,0.02240596]
[1772237739275,0.48879702,82.165,82.141,0.02240596]
[1772237741556,0.48879702,82.163,82.141,0.02240596]
[1772237742776,30.4225749,82.176,82.141,0.02240596]
[1772237742777,12.17107665,82.162,82.141,0.02240596]
[1772237742979,0.48879702,82.161,82.141,0.02240596]
[1772237744765,0.48879702,82.168,82.141,0.02240596]
[1772237745775,0.48879702,82.168,82.15,3.1066373]
[1772237747481,12.17031407,82.168,82.15,3.1066373]
[1772237747665,0.48879702,82.167,82.15,3.1066373]
[1772237750093,3.1066373,82.16,82.104,0.02240596]
[1772237750394,152.41537489,82.166,82.087,30.45545556]
[1772237750395,0.48879702,82.149,82.111,0.02240596]
[1772237750566,0.48879702,82.149,82.12,3.1066373]
[1772237752181,0.48879702,82.147,82.12,3.1066373]
[1772237753886,0.48879702,82.145,82.117,0.02240596]
[1772237754579,0.48879702,82.145,82.111,0.02240596]
[1772237756668,0.48879702,82.143,82.111,0.02240596]
[1772237756986,0.48879702,82.129,82.1,3.1066373]
[1772237757484,0.48879702,82.129,82.086,30.45573242]
[1772237757485,0.48879702,82.129,82.097,0.02240596]
[1772237757993,0.48879702,82.129,82.1,3.12904326]